bitfinex/quotes_BTCUSD_20250212
["timestamp","ask_amount","ask_price","bid_price","bid_amount"]
[1739377554875,0.023,95537.0,95522.0,0.19205605]
[1739377555091,0.023,95537.0,95536.0,0.157008]
[1739377555292,0.023,95537.0,95536.0,0.155008]
[1739377555494,0.023,95537.0,95536.0,0.00772171]
[1739377555709,0.19241069,95537.0,95536.0,0.00772171]
[1739377555916,0.023,95529.0,95523.0,0.157029]
[1739377556167,0.023,95529.0,95522.0,0.0818]
[1739377556373,0.180026,95525.0,95524.0,0.00114944]
[1739377556703,0.15703,95523.0,95522.0,0.0818]
[1739377556877,0.18003,95523.0,95522.0,0.0858]
[1739377557055,0.15,95536.0,95522.0,0.08697136]
[1739377557258,0.25804291,95538.0,95522.0,0.18547501]
[1739377557464,0.14779699,95538.0,95527.0,0.157022]
[1739377557660,0.023,95537.0,95525.0,0.157025]
[1739377557861,0.023,95530.0,95528.0,0.0011056]
[1739377558235,0.209343,95537.0,95526.0,0.00887115]
[1739377558426,0.180015,95532.0,95529.0,0.00109465]
[1739377558629,0.023,95532.0,95522.0,0.0818]
[1739377558831,0.001,95529.0,95522.0,0.0878]
[1739377559036,0.001,95529.0,95524.0,0.157027]
[1739377559241,0.0390369,95528.0,95522.0,0.0818]
[1739377559451,0.18003,95523.0,95522.0,0.0818]
[1739377561032,0.20937,95525.0,95517.0,0.00023934]
[1739377561033,0.330038,95518.0,95517.0,0.00023934]
[1739377562280,0.331038,95518.0,95517.0,0.00623934]
[1739377562678,0.330038,95518.0,95517.0,0.00023934]
[1739377563107,0.331038,95518.0,95517.0,0.00623934]
[1739377563326,0.42921213,95518.0,95517.0,0.00823934]
[1739377563478,0.43694758,95518.0,95517.0,0.00823934]
[1739377564101,0.43694758,95518.0,95517.0,0.00623934]
[1739377564305,0.43694758,95518.0,95517.0,0.00823934]
[1739377564503,0.54814606,95518.0,95517.0,0.00223934]
[1739377564713,0.57191958,95518.0,95517.0,0.00623934]
[1739377565303,0.57091958,95518.0,95517.0,0.00223934]
[1739377565546,0.56122475,95518.0,95517.0,0.00623934]
[1739377565778,0.56222475,95518.0,95517.0,0.00623934]
[1739377565976,0.53945123,95518.0,95517.0,0.00223934]
[1739377566178,0.53845123,95518.0,95517.0,0.00023934]
[1739377566457,0.54945123,95518.0,95517.0,0.00023934]
[1739377566666,0.54945123,95518.0,95494.0,0.0001066]
[1739377566667,0.307066,95501.0,95494.0,0.0001066]
[1739377566801,0.330066,95501.0,95500.0,0.01013266]
[1739377567412,0.43256965,95501.0,95500.0,0.01013266]
[1739377568003,0.46133937,95501.0,95500.0,0.01213266]
[1739377568203,0.157076,95495.0,95494.0,0.0001066]
[1739377568405,0.82401459,95495.0,95494.0,0.0005494]
[1739377568622,0.82401459,95495.0,95475.0,0.0145293]
[1739377568623,0.307107,95476.0,95475.0,0.0145293]
[1739377569032,0.43261065,95476.0,95475.0,0.0145293]
[1739377569426,0.44231353,95476.0,95475.0,0.0145293]
[1739377569650,0.45004898,95476.0,95475.0,0.0145293]
[1739377570395,0.47104966,95476.0,95475.0,0.0145293]
[1739377570760,0.47104966,95476.0,95475.0,0.0165293]
[1739377570928,0.52049774,95476.0,95475.0,0.0165293]
[1739377571155,0.5388724,95476.0,95475.0,0.0145293]
[1739377571358,0.5388724,95476.0,95475.0,0.0165293]
[1739377571587,0.5358724,95476.0,95475.0,0.0165293]
[1739377571789,0.5358724,95476.0,95475.0,0.0145293]
[1739377571790,0.5368724,95476.0,95475.0,0.0145293]
[1739377571990,0.157155,95447.0,95446.0,0.0769]
[1739377572148,0.180155,95447.0,95446.0,0.07703255]
[1739377572558,0.180155,95447.0,95446.0,0.07818769]
[1739377572808,0.180155,95447.0,95446.0,0.07703255]
[1739377573188,0.34950357,95447.0,95446.0,0.00013255]
[1739377573384,0.43619938,95447.0,95446.0,0.00013255]
[1739377573788,0.00773545,95447.0,95446.0,0.00013255]
[1739377573969,0.17459333,95447.0,95446.0,0.00013255]
[1739377574169,0.17459333,95447.0,95446.0,0.00113255]
[1739377574573,0.18958815,95447.0,95446.0,0.00113255]
[1739377574759,0.1828527,95447.0,95446.0,0.00213255]
[1739377574953,0.1828527,95447.0,95446.0,0.00013255]
[1739377575158,0.1818527,95447.0,95446.0,0.00013255]
[1739377575604,0.1828527,95447.0,95446.0,0.00013255]
[1739377576530,0.19058815,95447.0,95446.0,0.00213255]
[1739377576685,0.19058815,95447.0,95446.0,0.00013255]
[1739377576888,0.42974399,95447.0,95446.0,0.00013255]
[1739377577081,0.42974399,95447.0,95446.0,0.00213255]
[1739377577509,0.36358815,95447.0,95446.0,0.00213255]
[1739377577711,0.36258815,95447.0,95446.0,0.00013255]
[1739377578120,0.03643315,95447.0,95446.0,0.00013255]
[1739377578588,0.06730331,95447.0,95446.0,0.00013255]
[1739377578805,0.06730331,95447.0,95446.0,0.00927391]
[1739377579011,0.06430331,95447.0,95446.0,0.00013255]
[1739377579196,0.06730331,95447.0,95446.0,0.09047391]
[1739377579629,0.0246977,95447.0,95446.0,0.09047391]
[1739377579878,0.0256977,95447.0,95446.0,0.09047391]
[1739377580104,0.1818527,95447.0,95446.0,0.00927391]
[1739377580307,0.1818527,95447.0,95446.0,0.00413255]
[1739377580651,0.1818527,95447.0,95446.0,0.00013255]
[1739377580911,0.1828527,95447.0,95446.0,0.00423925]
[1739377581115,0.55443554,95447.0,95446.0,0.00423925]
[1739377581316,0.157193,95424.0,95416.0,0.0796]
[1739377581454,0.157196,95422.0,95421.0,0.00023915]
[1739377582212,0.16689888,95422.0,95421.0,0.00023915]
[1739377583377,0.31689888,95422.0,95421.0,0.00023915]
[1739377583786,0.31689888,95422.0,95421.0,0.00523915]
[1739377584001,0.31689888,95422.0,95421.0,0.00023915]
[1739377584198,0.33989888,95422.0,95421.0,0.00023915]
[1739377584399,0.34089888,95422.0,95421.0,0.00523915]
[1739377584598,0.16789888,95422.0,95421.0,0.00023915]
[1739377584822,0.21558861,95422.0,95421.0,0.00023915]
[1739377585021,0.21658861,95422.0,95421.0,0.00023915]
[1739377585223,0.21458861,95422.0,95421.0,0.00023915]
[1739377585914,0.21658861,95422.0,95421.0,0.00023915]
[1739377586417,0.46909226,95422.0,95421.0,0.00023915]
[1739377586643,0.62174879,95422.0,95421.0,0.00023915]
[1739377587250,0.61974879,95422.0,95421.0,0.00023915]
[1739377587454,0.61774879,95422.0,95421.0,0.00023915]
[1739377587628,0.61874879,95422.0,95421.0,0.00023915]
[1739377587804,0.61974879,95422.0,95421.0,0.00023915]
[1739377588214,0.61974879,95422.0,95404.0,0.0001067]
[1739377588215,0.307216,95410.0,95404.0,0.0001067]
[1739377588437,0.330216,95410.0,95404.0,0.0001067]
[1739377588671,0.330224,95405.0,95404.0,0.0001067]
[1739377588872,0.43272765,95405.0,95404.0,0.0001067]
[1739377589117,0.44243053,95405.0,95404.0,0.0001067]
[1739377589451,0.49258341,95405.0,95404.0,0.0001067]
[1739377589741,0.50029121,95405.0,95404.0,0.0001067]
[1739377591052,0.50429121,95405.0,95404.0,0.0001067]
[1739377591207,0.51955441,95405.0,95404.0,0.0001067]
[1739377591431,0.51555441,95405.0,95404.0,0.0001067]
[1739377591611,0.52555441,95405.0,95404.0,0.0001067]
[1739377591808,0.42305076,95405.0,95404.0,0.0001067]
[1739377592233,0.41605076,95405.0,95404.0,0.0001067]
[1739377592441,0.41905076,95405.0,95404.0,0.0001067]
[1739377592779,0.42205076,95405.0,95404.0,0.0001067]
[1739377592954,0.52455441,95405.0,95404.0,0.0001067]
[1739377593319,0.42205076,95405.0,95404.0,0.0001067]
[1739377593729,0.3851806,95405.0,95404.0,0.0001067]
[1739377593963,0.3821806,95405.0,95404.0,0.0001067]
[1739377594303,0.3831806,95405.0,95404.0,0.0001067]
[1739377594616,0.2361806,95405.0,95404.0,0.0001067]
[1739377594818,0.0559566,95405.0,95404.0,0.0011067]
[1739377595023,0.0529566,95405.0,95404.0,0.0011067]
[1739377595320,0.0539566,95405.0,95404.0,0.0011067]
[1739377596315,0.0539566,95405.0,95404.0,0.1583327]
[1739377596765,0.0386934,95405.0,95404.0,0.1583327]
[1739377597175,0.0366934,95405.0,95404.0,0.1573327]
[1739377597387,0.0366934,95405.0,95404.0,0.0001067]
[1739377597533,0.0376934,95405.0,95404.0,0.0011067]
[1739377597746,0.01841068,95405.0,95404.0,0.0001067]
[1739377597981,0.01741068,95405.0,95404.0,0.0031067]
[1739377598186,0.01841068,95405.0,95404.0,0.0031067]
[1739377598509,0.02041068,95405.0,95404.0,0.0031067]
[1739377598932,0.17763468,95405.0,95404.0,0.0031067]
[1739377599138,0.02041068,95405.0,95404.0,0.0031067]
[1739377599378,0.0107078,95405.0,95404.0,0.0031067]
[1739377599635,0.0107078,95405.0,95404.0,0.1603327]
[1739377599835,0.0107078,95405.0,95404.0,0.16876979]
[1739377599836,0.0087078,95405.0,95404.0,0.16876979]
[1739377600086,0.0097078,95405.0,95404.0,0.16876979]
[1739377600581,0.0087078,95405.0,95404.0,0.16876979]
[1739377600822,0.0087078,95405.0,95404.0,0.27127344]
[1739377601043,0.0087078,95405.0,95404.0,0.26827344]
[1739377601249,0.0087078,95405.0,95404.0,0.27227344]
[1739377601442,0.01937723,95405.0,95404.0,0.16976979]
[1739377601667,0.02137723,95405.0,95404.0,0.16576979]
[1739377601869,0.02237723,95405.0,95404.0,0.16976979]
[1739377602278,0.03207022,95405.0,95404.0,0.35017344]
[1739377603126,0.03977802,95405.0,95404.0,0.35158554]
[1739377606336,0.03977802,95405.0,95404.0,0.09185589]
[1739377607026,0.03977802,95405.0,95404.0,0.24908189]
[1739377607493,0.03977802,95405.0,95404.0,0.35158554]
[1739377607696,0.023,95404.0,95379.0,0.0001067]
[1739377607850,0.01,95380.0,95379.0,0.0001067]
[1739377608050,0.01,95382.0,95379.0,0.0005503]
[1739377608261,0.01,95385.0,95379.0,0.0005503]
[1739377608455,0.157263,95382.0,95379.0,0.0005503]
[1739377608647,0.157265,95380.0,95379.0,0.0005503]
[1739377608873,0.00969299,95381.0,95379.0,0.0005503]
[1739377609185,0.02907022,95381.0,95379.0,0.0005503]
[1739377609623,0.02907022,95381.0,95380.0,0.00701517]
[1739377609825,0.02907022,95381.0,95379.0,0.0005503]
[1739377610025,0.00776756,95380.0,95379.0,0.0005503]
[1739377610576,0.00876756,95380.0,95379.0,0.0045503]
[1739377611089,0.00776756,95380.0,95379.0,0.0005503]
[1739377611451,0.16603256,95380.0,95379.0,0.0045503]
[1739377611654,0.16603256,95380.0,95379.0,0.0075503]
[1739377611788,0.18572555,95380.0,95379.0,0.0075503]
[1739377611993,0.20516245,95380.0,95379.0,0.0075503]
[1739377612199,0.19516245,95380.0,95379.0,0.0075503]
[1739377612696,0.20908036,95380.0,95379.0,0.0035503]
[1739377612895,0.21308036,95380.0,95379.0,0.0045503]
[1739377613296,0.25383759,95380.0,95379.0,0.0035503]
[1739377613502,0.21908036,95380.0,95379.0,0.0035503]
[1739377613712,0.22108036,95380.0,95379.0,0.0005503]
[1739377613997,0.22308036,95380.0,95379.0,0.0005503]
[1739377614198,0.22108036,95380.0,95379.0,0.0005503]
[1739377614421,0.22308036,95380.0,95379.0,0.0005503]
[1739377614861,0.22108036,95380.0,95379.0,0.0005503]
[1739377615081,0.22308036,95380.0,95379.0,0.0005503]
[1739377615648,0.22408036,95380.0,95379.0,0.0005503]
[1739377615828,0.22208036,95380.0,95379.0,0.0005503]
[1739377616037,0.22708036,95380.0,95379.0,0.0005503]
[1739377616471,0.22208036,95380.0,95379.0,0.0005503]
[1739377616848,0.22608036,95380.0,95379.0,0.0005503]
[1739377617048,0.43920587,95380.0,95379.0,0.0005503]
[1739377618172,0.58920587,95380.0,95379.0,0.0005503]
[1739377619554,0.16731,95353.0,95352.0,0.0817]
[1739377619782,0.157325,95344.0,95343.0,0.0486]
[1739377620116,0.157325,95344.0,95343.0,0.04873277]
[1739377620346,0.1767619,95344.0,95343.0,0.00013277]
[1739377620579,0.1867619,95344.0,95343.0,0.00013277]
[1739377621320,0.28926555,95344.0,95343.0,0.00013277]
[1739377621527,0.31226555,95344.0,95343.0,0.00013277]
[1739377621738,0.32103311,95344.0,95343.0,0.00013277]
[1739377621944,0.19552946,95344.0,95343.0,0.00013277]
[1739377622146,0.20422245,95344.0,95343.0,0.00013277]
[1739377622374,0.20522245,95344.0,95343.0,0.00013277]
[1739377622725,0.20422245,95344.0,95343.0,0.00013277]
[1739377622925,0.20722245,95344.0,95343.0,0.00013277]
[1739377623533,0.03989745,95344.0,95343.0,0.00013277]
[1739377623954,0.03989745,95344.0,95343.0,0.08133277]
[1739377624160,0.03989745,95344.0,95343.0,0.18383642]
[1739377624363,0.02046055,95344.0,95343.0,0.34116242]
[1739377624757,0.02046055,95344.0,95343.0,0.38956242]
[1739377624967,0.01269299,95344.0,95343.0,0.23223642]
[1739377625091,0.01069299,95344.0,95343.0,0.13373277]
[1739377625294,0.01169299,95344.0,95343.0,0.13573277]
[1739377625511,0.01069299,95344.0,95343.0,0.39156242]
[1739377625695,0.002,95344.0,95343.0,0.39156242]
[1739377626355,0.002,95344.0,95343.0,0.23423642]
[1739377626695,0.002,95344.0,95343.0,0.39156242]
[1739377627329,0.159325,95344.0,95343.0,0.13173277]
[1739377628368,0.159325,95344.0,95343.0,0.08333277]
[1739377628578,0.169325,95344.0,95343.0,0.00213277]
[1739377628790,0.27182865,95344.0,95343.0,0.00213277]
[1739377628999,0.29482865,95344.0,95343.0,0.00213277]
[1739377629430,0.3154413,95344.0,95343.0,0.00213277]
[1739377629668,0.3144413,95344.0,95343.0,0.00013277]
[1739377629837,0.40891303,95344.0,95343.0,0.00113277]
[1739377630036,0.3144413,95344.0,95343.0,0.00123957]
[1739377630248,0.3134413,95344.0,95343.0,0.00123957]
[1739377630641,0.327518,95344.0,95343.0,0.00213277]
[1739377630846,0.477518,95344.0,95316.0,0.0495]
[1739377631045,0.157369,95317.0,95316.0,0.04963307]
[1739377632248,0.157369,95317.0,95316.0,0.05263307]
[1739377632673,0.158369,95317.0,95316.0,0.05463307]
[1739377632878,0.168369,95317.0,95316.0,0.00513307]
[1739377633101,0.01,95302.0,95300.0,4e-05]
[1739377633307,0.209854,95305.0,95300.0,4e-05]
[1739377633308,0.167396,95301.0,95300.0,4e-05]
[1739377633452,0.167396,95301.0,95300.0,0.00017327]
[1739377634080,0.157396,95301.0,95300.0,0.00017327]
[1739377634279,0.10250365,95316.0,95300.0,0.00017327]
[1739377634280,0.02190383,95317.0,95300.0,0.00017327]
[1739377634529,0.209839,95312.0,95300.0,0.00017327]
[1739377634730,0.01,95316.0,95300.0,0.10267692]
[1739377634932,0.01,95309.0,95300.0,0.00017327]
[1739377635136,0.167396,95301.0,95300.0,0.00017327]
[1739377635916,0.20075296,95301.0,95300.0,0.00017327]
[1739377636645,0.22475296,95301.0,95300.0,0.00017327]
[1739377636858,0.20175296,95301.0,95300.0,0.00017327]
[1739377637054,0.168396,95301.0,95300.0,0.00017327]
[1739377637266,0.158396,95301.0,95300.0,0.00017327]
[1739377637417,0.001,95301.0,95300.0,0.00017327]
[1739377637974,0.08387547,95342.0,95300.0,0.00017327]
[1739377637975,0.01,95317.0,95300.0,0.10267692]
[1739377638295,0.01394776,95312.0,95301.0,0.10250365]
[1739377638407,0.01394776,95312.0,95301.0,0.10150365]
[1739377638613,0.01,95317.0,95301.0,0.10150365]
[1739377638868,0.157386,95307.0,95301.0,0.10150365]
[1739377639104,0.157384,95309.0,95301.0,0.10050365]
[1739377639312,0.157396,95301.0,95300.0,0.00017327]
[1739377639785,0.157394,95302.0,95300.0,0.00017327]
[1739377640375,0.209841,95310.0,95300.0,0.00017327]
[1739377640619,0.157387,95306.0,95300.0,0.00017327]
[1739377640823,0.01,95311.0,95300.0,0.00017327]
[1739377640996,0.167396,95301.0,95300.0,0.00017327]
[1739377641601,0.168396,95301.0,95300.0,0.00017327]
[1739377641806,0.2044463,95301.0,95300.0,0.00017327]
[1739377642011,0.2034463,95301.0,95300.0,0.00017327]
[1739377642222,0.2044463,95301.0,95300.0,0.00017327]
[1739377642424,0.2044463,95301.0,95300.0,0.00028017]
[1739377642626,0.168396,95301.0,95300.0,0.00028017]
[1739377642830,0.17612929,95301.0,95300.0,0.00028017]
[1739377643991,0.17512929,95301.0,95300.0,0.00028017]
[1739377644193,0.18940541,95301.0,95300.0,0.00028017]
[1739377644418,0.19340541,95301.0,95300.0,0.00028017]
[1739377644798,0.18940541,95301.0,95300.0,0.00028017]
[1739377644998,0.22545571,95301.0,95300.0,0.00028017]
[1739377645245,0.22645571,95301.0,95300.0,0.00028017]
[1739377645683,0.22745571,95301.0,95300.0,0.00028017]
[1739377646979,0.22645571,95301.0,95300.0,0.00028017]
[1739377647855,0.55151013,95301.0,95300.0,0.00028017]
[1739377648056,0.58756043,95301.0,95300.0,0.00028017]
[1739377648274,0.59604043,95301.0,95300.0,0.00028017]
[1739377648456,0.51043936,95301.0,95300.0,0.00028017]
[1739377648637,0.50095936,95301.0,95300.0,0.00028017]
[1739377649075,0.51195936,95301.0,95300.0,0.00028017]
[1739377654358,0.20040541,95301.0,95300.0,0.00028017]
[1739377654824,0.20040541,95301.0,95300.0,0.07918017]
[1739377655027,0.17612929,95301.0,95300.0,0.07918017]
[1739377655240,0.17612929,95301.0,95300.0,0.07973564]
[1739377655437,0.01895779,95301.0,95300.0,0.07973564]
[1739377655637,0.17635379,95301.0,95300.0,0.07973564]
[1739377656675,0.22443625,95301.0,95300.0,0.00083564]
[1739377656872,0.21643625,95301.0,95300.0,0.00028017]
[1739377657086,0.18735379,95301.0,95300.0,0.00028017]
[1739377657340,0.17435379,95301.0,95300.0,0.00028017]
[1739377657496,0.01695779,95301.0,95300.0,0.00028017]
[1739377657701,0.00795779,95301.0,95300.0,0.00028017]
[1739377657901,0.00895779,95301.0,95300.0,0.00083564]
[1739377658080,0.219848,95307.0,95300.0,0.00028017]
[1739377658283,0.157392,95304.0,95300.0,0.00083564]
[1739377658490,0.157389,95305.0,95300.0,0.15767717]
[1739377658691,0.157388,95306.0,95301.0,0.15794838]
[1739377658893,0.157389,95305.0,95301.0,0.00055338]
[1739377659198,0.01418448,95309.0,95302.0,0.22990365]
[1739377659394,0.01,95324.0,95302.0,0.23095289]
[1739377659610,0.157356,95325.0,95316.0,0.157371]
[1739377659834,0.02454715,95324.0,95303.0,0.00089239]
[1739377660033,0.01,95324.0,95317.0,0.00086318]
[1739377660248,0.01,95324.0,95313.0,0.157375]
[1739377660419,0.157363,95321.0,95304.0,0.10250365]
[1739377660633,0.157363,95321.0,95318.0,0.00086109]
[1739377660836,0.01,95315.0,95302.0,0.1274]
[1739377660980,0.15738,95311.0,95303.0,0.158392]
[1739377661179,0.157383,95309.0,95303.0,0.001]
[1739377661423,0.157381,95310.0,95303.0,0.001]
[1739377661608,0.01,95311.0,95302.0,0.1274]
[1739377661809,0.011,95321.0,95318.0,0.002]
[1739377662106,0.157366,95319.0,95318.0,0.002]
[1739377662508,0.08751722,95321.0,95318.0,0.002]
[1739377662709,0.157366,95319.0,95318.0,0.002]
[1739377662883,0.157366,95319.0,95318.0,0.004]
[1739377663085,0.157366,95319.0,95318.0,0.002]
[1739377663289,0.157366,95319.0,95302.0,0.1274]
[1739377663290,0.209821,95319.0,95302.0,0.1274]
[1739377663498,0.157391,95304.0,95303.0,0.006]
[1739377664117,0.209845,95308.0,95300.0,0.00028017]
[1739377664118,0.157396,95301.0,95300.0,0.00028017]
[1739377664464,0.25989965,95301.0,95300.0,0.00028017]
[1739377666061,0.157396,95301.0,95300.0,0.00028017]
[1739377666261,0.17161124,95301.0,95300.0,0.00028017]
[1739377666490,0.17261124,95301.0,95300.0,0.00528017]
[1739377666692,0.001,95301.0,95300.0,0.00528017]
[1739377666897,0.209807,95326.0,95300.0,0.00528017]
[1739377666898,0.14403387,95318.0,95300.0,0.08318017]
[1739377667093,0.14403387,95318.0,95300.0,0.07818017]
[1739377667094,0.157388,95306.0,95300.0,0.07818017]
[1739377667311,0.231004,95326.0,95300.0,0.08218017]
[1739377667484,0.157369,95317.0,95307.0,0.157385]
[1739377667683,0.157369,95317.0,95301.0,0.0488]
[1739377667961,0.157367,95319.0,95309.0,0.157382]
[1739377668159,0.157364,95320.0,95310.0,0.157381]
[1739377668536,0.157366,95319.0,95310.0,0.157381]
[1739377668777,0.157364,95321.0,95311.0,0.157377]
[1739377668893,0.157361,95323.0,95303.0,0.209856]
[1739377669128,0.157361,95323.0,95314.0,0.157374]
[1739377669560,0.006,95326.0,95307.0,0.209846]
[1739377669809,0.01,95318.0,95311.0,0.157378]
[1739377670013,0.01,95318.0,95304.0,0.10250365]
[1739377670180,0.157358,95324.0,95314.0,0.157373]
[1739377670416,0.209806,95327.0,95314.0,0.157373]
[1739377670417,0.159359,95323.0,95314.0,0.157373]
[1739377670650,0.157364,95320.0,95314.0,0.003]
[1739377670896,0.002,95323.0,95314.0,0.003]
[1739377671072,0.002,95323.0,95316.0,0.15737]
[1739377671253,0.159359,95323.0,95315.0,0.15823517]
[1739377671461,0.00777244,95322.0,95315.0,0.15823517]
[1739377671700,0.00777244,95322.0,95317.0,0.000859]
[1739377671915,0.00777244,95322.0,95311.0,0.003]
[1739377671916,0.157364,95321.0,95316.0,0.00086109]
[1739377672061,0.157364,95320.0,95311.0,0.160379]
[1739377672265,0.21758744,95322.0,95311.0,0.10250365]
[1739377672542,0.00777244,95322.0,95314.0,0.001]
[1739377672826,0.00777244,95322.0,95316.0,0.157371]
[1739377672975,0.00777244,95322.0,95311.0,0.10250365]
[1739377673180,0.157367,95318.0,95317.0,0.000859]
[1739377673405,0.157367,95318.0,95300.0,0.07818017]
[1739377673406,0.00777244,95320.0,95314.0,0.002]
[1739377673560,0.157372,95315.0,95314.0,0.004]
[1739377673976,0.157372,95315.0,95314.0,0.002]
[1739377674607,0.00777244,95315.0,95305.0,0.157389]
[1739377674868,0.157378,95312.0,95305.0,0.157389]
[1739377675072,0.157378,95312.0,95306.0,0.00087375]
[1739377675292,0.157378,95312.0,95311.0,0.003]
[1739377675498,0.16514544,95315.0,95311.0,0.005]
[1739377675690,0.16514544,95315.0,95311.0,0.00586332]
[1739377675895,0.00777244,95315.0,95311.0,0.00086332]
[1739377676157,0.17150344,95320.0,95312.0,0.367214]
[1739377676452,0.001,95315.0,95312.0,0.00086123]
[1739377676705,0.001,95315.0,95314.0,0.157374]
[1739377676876,0.001,95315.0,95314.0,0.234074]
[1739377677084,0.001,95315.0,95314.0,0.157374]
[1739377677285,0.01432215,95326.0,95314.0,0.00085706]
[1739377677489,0.15736,95323.0,95315.0,0.157372]
[1739377677667,0.01432215,95326.0,95312.0,0.157377]
[1739377677827,0.01432215,95326.0,95315.0,0.00085498]
[1739377678032,0.01432215,95326.0,95311.0,0.002]
[1739377678033,0.209808,95325.0,95311.0,0.002]
[1739377678295,0.01432215,95326.0,95311.0,0.002]
[1739377678454,0.001,95315.0,95312.0,0.00086123]
[1739377678664,0.157374,95314.0,95311.0,0.004]
[1739377678881,0.001,95315.0,95311.0,0.004]
[1739377679219,0.01432215,95326.0,95314.0,0.002]
[1739377679452,0.157364,95321.0,95314.0,0.157373]
[1739377679657,0.157364,95321.0,95315.0,0.00085498]
[1739377679866,0.157364,95320.0,95315.0,0.00085498]
[1739377680058,0.00014502,95315.0,95314.0,0.157374]
[1739377680498,0.00014502,95315.0,95312.0,0.157376]
[1739377680711,0.00014502,95315.0,95313.0,0.157374]
[1739377681210,0.00036952,95315.0,95311.0,0.32034065]
[1739377681416,0.00036952,95315.0,95314.0,0.157374]
[1739377681626,0.0002245,95315.0,95314.0,0.157374]
[1739377682264,0.0002245,95315.0,95314.0,0.25987765]
[1739377682500,0.0002245,95315.0,95314.0,0.33927765]
[1739377682709,0.0012245,95315.0,95314.0,0.55887765]
[1739377683343,0.209679,95384.0,95319.0,0.01]
[1739377683547,0.209679,95384.0,95340.0,0.281731]
[1739377683754,0.209679,95384.0,95352.0,0.157311]
[1739377683972,0.15729,95366.0,95352.0,0.25881465]
[1739377684178,0.09261292,95361.0,95357.0,0.157302]
[1739377684403,0.09261292,95361.0,95358.0,0.157301]
[1739377684613,0.09261292,95361.0,95358.0,0.00647153]
[1739377684951,0.1573,95359.0,95358.0,0.00547153]
[1739377685326,0.09274518,95361.0,95342.0,0.157327]
[1739377685508,0.157318,95348.0,95340.0,0.28173]
[1739377685748,0.157324,95345.0,95340.0,0.1244]
[1739377685954,0.023,95360.0,95340.0,0.0768]
[1739377686159,0.023,95360.0,95330.0,0.0758]
[1739377686160,0.157336,95338.0,95330.0,0.0758]
[1739377686338,0.10250365,95359.0,95337.0,0.157335]
[1739377686562,0.157319,95348.0,95331.0,0.10250365]
[1739377686709,0.157323,95345.0,95335.0,0.157338]
[1739377686951,0.023,95358.0,95331.0,0.10250365]
[1739377687135,0.15733,95341.0,95332.0,0.157344]
[1739377687332,0.15733,95341.0,95333.0,0.00637686]
[1739377687730,0.157331,95340.0,95333.0,0.00637686]
[1739377687983,0.024,95360.0,95335.0,0.157339]
[1739377688188,0.024,95360.0,95333.0,0.21616686]
[1739377688189,0.209763,95346.0,95333.0,0.00637686]
[1739377688384,0.157329,95342.0,95336.0,0.00636236]
[1739377688603,0.157326,95343.0,95334.0,0.00637093]
[1739377688817,0.157316,95350.0,95337.0,0.00635807]
[1739377688963,0.157321,95347.0,95338.0,0.157334]
[1739377689165,0.157321,95347.0,95339.0,0.157332]
[1739377689372,0.003,95360.0,95338.0,0.00635379]
[1739377689578,0.023,95369.0,95340.0,0.00634522]
[1739377689785,0.209731,95360.0,95339.0,0.1636815]
[1739377690053,0.023,95367.0,95341.0,0.00634093]
[1739377690259,0.15733,95341.0,95340.0,0.00634522]
[1739377690458,0.15733,95341.0,95337.0,0.004]
[1739377690894,0.157331,95340.0,95337.0,0.004]
[1739377691107,0.157333,95339.0,95337.0,0.004]
[1739377691533,0.157334,95338.0,95337.0,0.004]
[1739377691764,0.157331,95340.0,95330.0,0.285596]
[1739377691973,0.023,95360.0,95333.0,0.157342]
[1739377692193,0.209754,95350.0,95331.0,0.10250365]
[1739377692403,0.157316,95349.0,95341.0,0.157329]
[1739377692740,0.157316,95349.0,95342.0,0.155328]
[1739377692979,0.0077512,95359.0,95337.0,0.017]
[1739377693142,0.0077512,95359.0,95338.0,0.10250365]
[1739377693548,0.157309,95354.0,95347.0,0.157319]
[1739377693893,0.157309,95354.0,95341.0,0.004]
[1739377694097,0.157305,95356.0,95349.0,0.157316]
[1739377694299,0.209731,95360.0,95350.0,0.240114]
[1739377694522,0.157304,95357.0,95350.0,0.0828]
[1739377694695,0.209733,95359.0,95350.0,0.0828]
[1739377694902,0.00013226,95361.0,95350.0,0.0828]
[1739377695105,0.157313,95351.0,95350.0,0.0828]
[1739377695490,0.157322,95346.0,95340.0,0.157331]
[1739377695697,0.15732,95348.0,95341.0,0.157329]
[1739377696080,0.157321,95347.0,95341.0,0.157329]
[1739377696327,0.157321,95346.0,95339.0,0.234531]
[1739377696528,0.00213226,95361.0,95339.0,0.0772]
[1739377696682,0.157327,95343.0,95340.0,0.003]
[1739377696879,0.00013226,95361.0,95339.0,0.0772]
[1739377697100,0.157331,95340.0,95339.0,0.0772]
[1739377697523,0.001,95347.0,95339.0,0.0772]
[1739377697725,0.001,95347.0,95346.0,0.157321]
[1739377697958,0.001,95347.0,95346.0,0.25982465]
[1739377698161,0.001,95347.0,95346.0,0.30832465]
[1739377698363,0.2002968,95380.0,95346.0,0.23260365]
[1739377698594,0.157279,95372.0,95365.0,0.15729]
[1739377698733,0.00044332,95387.0,95347.0,0.10355219]
[1739377698734,0.21011532,95387.0,95347.0,0.10250365]
[1739377698937,0.10250365,95386.0,95366.0,0.00623291]
[1739377699136,0.10250365,95386.0,95366.0,0.16352091]
[1739377699342,0.157277,95373.0,95366.0,0.16252091]
[1739377699565,0.015,95380.0,95367.0,0.0796]
[1739377699766,0.209689,95379.0,95367.0,0.24294797]
[1739377699920,0.157273,95376.0,95367.0,0.24294797]
[1739377700386,0.023,95385.0,95367.0,0.00606197]
[1739377700387,0.157285,95368.0,95367.0,0.00606197]
[1739377700803,0.157285,95368.0,95366.0,0.001]
[1739377701004,0.157285,95368.0,95367.0,0.002]
[1739377701286,0.20971,95370.0,95367.0,0.002]
[1739377701515,0.001,95373.0,95367.0,0.002]
[1739377701960,0.001,95373.0,95368.0,0.00603727]
[1739377702288,0.15,95385.0,95368.0,0.00603727]
[1739377702289,0.15726,95384.0,95375.0,0.157272]
[1739377702496,0.15726,95384.0,95376.0,0.00600301]
[1739377702702,0.15726,95384.0,95376.0,0.00500301]
[1739377702703,0.157264,95381.0,95376.0,0.00500301]
[1739377702899,0.157264,95381.0,95369.0,0.20971]
[1739377703101,0.209679,95384.0,95370.0,0.209709]
[1739377703323,0.209679,95384.0,95370.0,0.00586127]
[1739377703519,0.157259,95384.0,95375.0,0.157273]